Workbook

Sheet 第二批散货轮运输构件清单
A1: 附件1：散货轮货物明细清单
A2: 序号 | B2: 英文名称 | C2: 中文名称 | D2: 规格型号 | E2: 单位 | F2: 数量 | G2: 单重（kg) | H2: 净重（kg） | I2: 毛重 （kg） | J2: 长×宽×高（m） | K2: 体积（m3) | L2: 提货点
A3: 1 | B3: P-PTZ-1 | C3: 平台柱-1 | D3: HW428*407*20*35 | E3: 根 | F3: 1 | G3: 3417.6 | H3: =G3*F3 -> 3417.6 | I3: 3417.6 | J3: 10.790*0.628*0.820 | K3: 5.556 | L3: 安徽巢湖
A4: 2 | B4: P-PTZ-2 | C4: 平台柱-2 | D4: HW428*407*20*35 | E4: 根 | F4: 1 | G4: 3417.6 | H4: 3417.6 | I4: 3417.6 | J4: 10.790*0.628*0.820 | K4: 5.556 | L4: 安徽巢湖
A5: 3 | B5: P-PTZ-3 | C5: 平台柱-3 | D5: HW428*407*20*35 | E5: 根 | F5: 1 | G5: 5637.8 | H5: 5637.8 | I5: 5637.8 | J5: 17.729*0.628*0.828 | K5: 9.219 | L5: 安徽巢湖
A6: 4 | B6: P-PTZ-4 | C6: 平台柱-4 | D6: HW428*407*20*35 | E6: 根 | F6: 1 | G6: 5635.8 | H6: 5635.8 | I6: 5635.8 | J6: 17.729*0.628*0.828 | K6: 9.219 | L6: 安徽巢湖
A7: 5 | B7: P-PTZ-5 | C7: 平台柱-5 | D7: HW428*407*20*35 | E7: 根 | F7: 1 | G7: 3574.4 | H7: 3574.4 | I7: 3574.4 | J7: 11.339*0.628*0.947 | K7: 6.743 | L7: 安徽巢湖
A8: 6 | B8: P-PTZ-6 | C8: 平台柱-6 | D8: HW428*407*20*35 | E8: 根 | F8: 1 | G8: 3574.4 | H8: 3574.4 | I8: 3574.4 | J8: 11.339*0.628*0.947 | K8: 6.743 | L8: 安徽巢湖
A9: 7 | B9: P-PTZ-7 | C9: 平台柱-7 | D9: HW428*407*20*35 | E9: 根 | F9: 1 | G9: 3960.4 | H9: 3960.4 | I9: 3960.4 | J9: 12.654*0.618*1.197 | K9: 9.361 | L9: 安徽巢湖
A10: 8 | B10: P-PTZ-8 | C10: 平台柱-8 | D10: HW428*407*20*35 | E10: 根 | F10: 1 | G10: 3960.4 | H10: 3960.4 | I10: 3960.4 | J10: 12.654*0.618*1.197 | K10: 9.361 | L10: 安徽巢湖
A11: 9 | B11: P-PTZ-9 | C11: 平台柱-9 | D11: HW428*407*20*35 | E11: 根 | F11: 1 | G11: 3994.1 | H11: 3994.1 | I11: 3994.1 | J11: 12.784*0.618*1.197 | K11: 9.457 | L11: 安徽巢湖
A12: 10 | B12: P-PTZ-10 | C12: 平台柱-10 | D12: HW428*407*20*35 | E12: 根 | F12: 1 | G12: 4017.6 | H12: 4017.6 | I12: 4017.6 | J12: 12.868*0.618*1.197 | K12: 9.519 | L12: 安徽巢湖
A13: 11 | B13: P-PTZ-11 | C13: 平台柱-11 | D13: HW428*407*20*35 | E13: 根 | F13: 1 | G13: 4029.1 | H13: 4029.1 | I13: 4029.1 | J13: 12.763*0.523*1.206 | K13: 8.050 | L13: 安徽巢湖
A14: 12 | B14: P-PTZ-12 | C14: 平台柱-12 | D14: HW428*407*20*35 | E14: 根 | F14: 1 | G14: 4029.1 | H14: 4029.1 | I14: 4029.1 | J14: 12.763*0.523*1.206 | K14: 8.050 | L14: 安徽巢湖
A15: 13 | B15: P-PTZ-13 | C15: 平台柱-13 | D15: HW428*407*20*35 | E15: 根 | F15: 1 | G15: 2493.7 | H15: 2493.7 | I15: 2493.7 | J15: 8.049*0.523*0.947 | K15: 3.987 | L15: 安徽巢湖
A16: 14 | B16: P-PTZ-14 | C16: 平台柱-14 | D16: HW428*407*20*35 | E16: 根 | F16: 1 | G16: 2493.7 | H16: 2493.7 | I16: 2493.7 | J16: 8.049*0.523*0.947 | K16: 3.987 | L16: 安徽巢湖
A17: 15 | B17: P-PTZ-15 | C17: 平台柱-15 | D17: HW428*407*20*35 | E17: 根 | F17: 1 | G17: 2514.7 | H17: 2514.7 | I17: 2514.7 | J17: 8.248*0.523*0.947 | K17: 4.085 | L17: 安徽巢湖
A18: 16 | B18: P-PTZ-16 | C18: 平台柱-16 | D18: HW428*407*20*35 | E18: 根 | F18: 1 | G18: 2514.7 | H18: 2514.7 | I18: 2514.7 | J18: 8.248*0.523*0.947 | K18: 4.085 | L18: 安徽巢湖
A19: 17 | B19: P-PTZ-17 | C19: 平台柱-17 | D19: HW428*407*20*35 | E19: 根 | F19: 1 | G19: 4172.4 | H19: 4172.4 | I19: 4172.4 | J19: 13.229*0.523*1.206 | K19: 8.344 | L19: 安徽巢湖
A20: 18 | B20: P-PTZ-18 | C20: 平台柱-18 | D20: HW428*407*20*35 | E20: 根 | F20: 1 | G20: 4172.4 | H20: 4172.4 | I20: 4172.4 | J20: 13.229*0.523*1.206 | K20: 8.344 | L20: 安徽巢湖
A21: 19 | B21: P-PTZ-19 | C21: 平台柱-19 | D21: HW428*407*20*35 | E21: 根 | F21: 1 | G21: 4155.1 | H21: 4155.1 | I21: 4155.1 | J21: 13.229*0.523*1.206 | K21: 8.344 | L21: 安徽巢湖
A22: 20 | B22: P-PTZ-20 | C22: 平台柱-20 | D22: HW428*407*20*35 | E22: 根 | F22: 1 | G22: 4155.1 | H22: 4155.1 | I22: 4155.1 | J22: 13.229*0.523*1.206 | K22: 8.344 | L22: 安徽巢湖
A23: 21 | B23: P-PTZ-21 | C23: 平台柱-21 | D23: HW428*407*20*35 | E23: 根 | F23: 1 | G23: 2727.9 | H23: 2727.9 | I23: 2727.9 | J23: 8.948*0.523*0.947 | K23: 4.432 | L23: 安徽巢湖
A24: 22 | B24: P-PTZ-22 | C24: 平台柱-22 | D24: HW428*407*20*35 | E24: 根 | F24: 1 | G24: 2727.9 | H24: 2727.9 | I24: 2727.9 | J24: 8.948*0.523*0.947 | K24: 4.432 | L24: 安徽巢湖
A25: 23 | B25: P-PTZ-23 | C25: 平台柱-23 | D25: HW428*407*20*35 | E25: 根 | F25: 1 | G25: 3661 | H25: 3661 | I25: 3661 | J25: 11.580*0.628*0.820 | K25: 5.963 | L25: 安徽巢湖
A26: 24 | B26: P-PTZ-24 | C26: 平台柱-24 | D26: HW428*407*20*35 | E26: 根 | F26: 1 | G26: 3661 | H26: 3661 | I26: 3661 | J26: 11.580*0.628*0.820 | K26: 5.963 | L26: 安徽巢湖
A27: 25 | B27: P-PTZ-25 | C27: 平台柱-25 | D27: HW428*407*20*35 | E27: 根 | F27: 1 | G27: 3965 | H27: 3965 | I27: 3965 | J27: 12.950*0.628*0.820 | K27: 6.669 | L27: 安徽巢湖
A28: 26 | B28: P-PTZ-26 | C28: 平台柱-26 | D28: HW428*407*20*35 | E28: 根 | F28: 1 | G28: 3965 | H28: 3965 | I28: 3965 | J28: 12.950*0.628*0.820 | K28: 6.669 | L28: 安徽巢湖
A29: 27 | B29: P-PTZ-27 | C29: 平台柱-27 | D29: HW428*407*20*35 | E29: 根 | F29: 1 | G29: 2747.4 | H29: 2747.4 | I29: 2747.4 | J29: 8.733*0.523*1.206 | K29: 5.508 | L29: 安徽巢湖
A30: 28 | B30: P-PTZ-28 | C30: 平台柱-28 | D30: HW428*407*20*35 | E30: 根 | F30: 1 | G30: 4133.6 | H30: 4133.6 | I30: 4133.6 | J30: 13.129*0.523*1.206 | K30: 8.281 | L30: 安徽巢湖
A31: 29 | B31: P-PTZ-29 | C31: 平台柱-29 | D31: HW428*407*20*35 | E31: 根 | F31: 1 | G31: 4123.6 | H31: 4123.6 | I31: 4123.6 | J31: 13.093*0.523*1.206 | K31: 8.258 | L31: 安徽巢湖
A32: 30 | B32: P-PTZ-30 | C32: 平台柱-30 | D32: HW428*407*20*35 | E32: 根 | F32: 1 | G32: 4074.9 | H32: 4074.9 | I32: 4074.9 | J32: 12.919*0.523*1.206 | K32: 8.149 | L32: 安徽巢湖
A33: 31 | B33: P-PTZ-31 | C33: 平台柱-31 | D33: HW428*407*20*35 | E33: 根 | F33: 1 | G33: 4074.9 | H33: 4074.9 | I33: 4074.9 | J33: 12.919*0.523*1.206 | K33: 8.149 | L33: 安徽巢湖
A34: 32 | B34: P-PTZ-32 | C34: 平台柱-32 | D34: HW428*407*20*35 | E34: 根 | F34: 1 | G34: 4133.6 | H34: 4133.6 | I34: 4133.6 | J34: 13.129*0.523*1.206 | K34: 8.281 | L34: 安徽巢湖
A35: 33 | B35: P-PTZ-33 | C35: 平台柱-33 | D35: HW428*407*20*35 | E35: 根 | F35: 1 | G35: 3020.9 | H35: 3020.9 | I35: 3020.9 | J35: 9.590*0.628*1.197 | K35: 7.209 | L35: 安徽巢湖
A36: 34 | B36: P-PTZ-34 | C36: 平台柱-34 | D36: HW428*407*20*35 | E36: 根 | F36: 1 | G36: 4055.8 | H36: 4055.8 | I36: 4055.8 | J36: 12.873*0.523*1.206 | K36: 8.119 | L36: 安徽巢湖
A37: 35 | B37: P-PTZ-35 | C37: 平台柱-35 | D37: HW428*407*20*35 | E37: 根 | F37: 1 | G37: 4090.4 | H37: 4090.4 | I37: 4090.4 | J37: 12.873*0.523*1.206 | K37: 8.119 | L37: 安徽巢湖
A38: 36 | B38: P-PTZ-36 | C38: 平台柱-36 | D38: HW428*407*20*35 | E38: 根 | F38: 1 | G38: 3970.7 | H38: 3970.7 | I38: 3970.7 | J38: 12.659*0.523*1.206 | K38: 7.985 | L38: 安徽巢湖
A39: 37 | B39: P-PTZ-37 | C39: 平台柱-37 | D39: HW428*407*20*35 | E39: 根 | F39: 1 | G39: 3970.7 | H39: 3970.7 | I39: 3970.7 | J39: 12.659*0.523*1.206 | K39: 7.985 | L39: 安徽巢湖
A40: 38 | B40: P-PTZ-38 | C40: 平台柱-38 | D40: HW428*407*20*35 | E40: 根 | F40: 1 | G40: 4032.3 | H40: 4032.3 | I40: 4032.3 | J40: 12.789*0.523*1.206 | K40: 8.067 | L40: 安徽巢湖
A41: 39 | B41: P-PTZ-39 | C41: 平台柱-39 | D41: HW428*407*20*35 | E41: 根 | F41: 1 | G41: 4066.9 | H41: 4066.9 | I41: 4066.9 | J41: 12.789*0.523*1.206 | K41: 8.067 | L41: 安徽巢湖
A42: 40 | B42: P-PTZ-40 | C42: 平台柱-40 | D42: HW428*407*20*35 | E42: 根 | F42: 1 | G42: 3996.6 | H42: 3996.6 | I42: 3996.6 | J42: 12.659*0.523*1.206 | K42: 7.985 | L42: 安徽巢湖
A43: 41 | B43: P-PTZ-41 | C43: 平台柱-41 | D43: HW428*407*20*35 | E43: 根 | F43: 1 | G43: 3996.6 | H43: 3996.6 | I43: 3996.6 | J43: 12.659*0.523*1.206 | K43: 7.985 | L43: 安徽巢湖
A44: 42 | B44: P-PTZ-42 | C44: 平台柱-42 | D44: HW428*407*20*35 | E44: 根 | F44: 1 | G44: 4092 | H44: 4092 | I44: 4092 | J44: 12.950*0.628*1.197 | K44: 9.735 | L44: 安徽巢湖
A45: 43 | B45: P-PTZ-43 | C45: 平台柱-43 | D45: HW428*407*20*35 | E45: 根 | F45: 2 | G45: 4092 | H45: 8184 | I45: 8184 | J45: 12.950*0.628*1.197 | K45: 19.469 | L45: 安徽巢湖
A46: 44 | B46: P-PTZ-44 | C46: 平台柱-44 | D46: HW428*407*20*35 | E46: 根 | F46: 1 | G46: 3392.4 | H46: 3392.4 | I46: 3392.4 | J46: 10.450*0.628*1.197 | K46: 7.855 | L46: 安徽巢湖
A47: 45 | B47: P-PTZ-45 | C47: 平台柱-45 | D47: HW428*407*20*35 | E47: 根 | F47: 1 | G47: 3693.1 | H47: 3693.1 | I47: 3693.1 | J47: 11.450*0.628*1.197 | K47: 8.607 | L47: 安徽巢湖
A48: 46 | B48: P-PTZ-46 | C48: 平台柱-46 | D48: HW428*407*20*35 | E48: 根 | F48: 7 | G48: 3016.6 | H48: 21116.2 | I48: 21116.2 | J48: 9.590*0.628*1.197 | K48: 50.463 | L48: 安徽巢湖
A49: 47 | B49: P-PTZ-47 | C49: 平台柱-47 | D49: HW428*407*20*35 | E49: 根 | F49: 9 | G49: 3016.6 | H49: 27149.4 | I49: 27149.4 | J49: 9.590*0.628*1.197 | K49: 64.881 | L49: 安徽巢湖
A50: 48 | B50: P-PTZ-48 | C50: 平台柱-48 | D50: HW428*407*20*35 | E50: 根 | F50: 1 | G50: 3019.2 | H50: 3019.2 | I50: 3019.2 | J50: 9.590*0.628*1.197 | K50: 7.209 | L50: 安徽巢湖
A51: 49 | B51: P-PTZ-49 | C51: 平台柱-49 | D51: HW428*407*20*35 | E51: 根 | F51: 1 | G51: 3019.2 | H51: 3019.2 | I51: 3019.2 | J51: 9.590*0.628*1.197 | K51: 7.209 | L51: 安徽巢湖
A52: 50 | B52: P-PTZ-50 | C52: 平台柱-50 | D52: HW428*407*20*35 | E52: 根 | F52: 4 | G52: 3021.9 | H52: 12087.6 | I52: 12087.6 | J52: 9.590*0.628*1.197 | K52: 28.836 | L52: 安徽巢湖
A53: 51 | B53: P-PTZ-51 | C53: 平台柱-51 | D53: HW428*407*20*35 | E53: 根 | F53: 1 | G53: 4256.1 | H53: 4256.1 | I53: 4256.1 | J53: 13.950*0.628*0.937 | K53: 8.209 | L53: 安徽巢湖
A54: 52 | B54: P-PTZ-52 | C54: 平台柱-52 | D54: HW428*407*20*35 | E54: 根 | F54: 1 | G54: 3444.5 | H54: 3444.5 | I54: 3444.5 | J54: 11.050*0.628*0.937 | K54: 6.502 | L54: 安徽巢湖
A55: 53 | B55: P-PTZ-53 | C55: 平台柱-53 | D55: HW428*407*20*35 | E55: 根 | F55: 7 | G55: 4099.9 | H55: 28699.3 | I55: 28699.3 | J55: 12.950*0.628*1.197 | K55: 68.143 | L55: 安徽巢湖
A56: 54 | B56: P-PTZ-54 | C56: 平台柱-54 | D56: HW428*407*20*35 | E56: 根 | F56: 1 | G56: 4099.9 | H56: 4099.9 | I56: 4099.9 | J56: 12.950*0.628*1.197 | K56: 9.735 | L56: 安徽巢湖
A57: 55 | B57: P-PTZ-55 | C57: 平台柱-55 | D57: HW428*407*20*35 | E57: 根 | F57: 1 | G57: 3640.4 | H57: 3640.4 | I57: 3640.4 | J57: 11.750*0.628*0.820 | K57: 6.051 | L57: 安徽巢湖
A58: 56 | B58: P-PTZ-56 | C58: 平台柱-56 | D58: HW428*407*20*35 | E58: 根 | F58: 1 | G58: 4452 | H58: 4452 | I58: 4452 | J58: 14.650*0.628*0.820 | K58: 7.544 | L58: 安徽巢湖
A59: 57 | B59: 1.84mPTL-1 | C59: 1.84米平台梁-1 | D59: HN400*200*8*13 | E59: 根 | F59: 1 | G59: 174.9 | H59: 174.9 | I59: 174.9 | J59: 2.720*0.200*0.400 | K59: 0.218 | L59: 安徽巢湖
A60: 58 | B60: 1.84mPTL-2 | C60: 1.84米平台梁-2 | D60: HN400*200*8*13 | E60: 根 | F60: 1 | G60: 319.6 | H60: 319.6 | I60: 319.6 | J60: 4.970*0.200*0.400 | K60: 0.398 | L60: 安徽巢湖
A61: 59 | B61: 1.84mPTL-3 | C61: 1.84米平台梁-3 | D61: HN400*200*8*13 | E61: 根 | F61: 3 | G61: 331.9 | H61: 995.7 | I61: 995.7 | J61: 4.970*0.470*0.400 | K61: 2.803 | L61: 安徽巢湖
A62: 60 | B62: 1.84mPTL-4 | C62: 1.84米平台梁-4 | D62: HN400*200*8*13 | E62: 根 | F62: 1 | G62: 330.2 | H62: 330.2 | I62: 330.2 | J62: 4.970*0.335*0.400 | K62: 0.666 | L62: 安徽巢湖
A63: 61 | B63: 1.84mPTL-5 | C63: 1.84米平台梁-5 | D63: HN400*200*8*13 | E63: 根 | F63: 9 | G63: 338.9 | H63: 3050.1 | I63: 3050.1 | J63: 5.270*0.200*0.400 | K63: 3.794 | L63: 安徽巢湖
A64: 62 | B64: 1.84mPTL-6 | C64: 1.84米平台梁-6 | D64: HN400*200*8*13 | E64: 根 | F64: 4 | G64: 351.2 | H64: 1404.8 | I64: 1404.8 | J64: 5.270*0.470*0.400 | K64: 3.963 | L64: 安徽巢湖
A65: 63 | B65: 1.84mPTL-7 | C65: 1.84米平台梁-7 | D65: HN400*200*8*13 | E65: 根 | F65: 3 | G65: 351.2 | H65: 1053.6 | I65: 1053.6 | J65: 5.270*0.470*0.400 | K65: 2.972 | L65: 安徽巢湖
A66: 64 | B66: 1.84mPTL-8 | C66: 1.84米平台梁-8 | D66: HN400*200*8*13 | E66: 根 | F66: 3 | G66: 351.2 | H66: 1053.6 | I66: 1053.6 | J66: 5.270*0.470*0.400 | K66: 2.972 | L66: 安徽巢湖
A67: 65 | B67: 1.84mPTL-9 | C67: 1.84米平台梁-9 | D67: HN400*200*8*13 | E67: 根 | F67: 1 | G67: 349.5 | H67: =G67*F67 -> 349.5 | I67: 349.5 | J67: 5.270*0.335*0.400 | K67: 0.706 | L67: 安徽巢湖
A68: 66 | B68: 1.84mPTL-10 | C68: 1.84米平台梁-10 | D68: HN400*200*8*13 | E68: 根 | F68: 1 | G68: 349.5 | H68: 349.5 | I68: 349.5 | J68: 5.270*0.335*0.400 | K68: 0.706 | L68: 安徽巢湖
A69: 67 | B69: 1.84mPTL-11 | C69: 1.84米平台梁-11 | D69: HN400*200*8*13 | E69: 根 | F69: 1 | G69: 349.5 | H69: 349.5 | I69: 349.5 | J69: 5.270*0.335*0.400 | K69: 0.706 | L69: 安徽巢湖
A70: 68 | B70: 1.84mPTL-12 | C70: 1.84米平台梁-12 | D70: HN400*200*8*13 | E70: 根 | F70: 5 | G70: 422.5 | H70: 2112.5 | I70: 2112.5 | J70: 6.570*0.200*0.400 | K70: 2.628 | L70: 安徽巢湖
A71: 69 | B71: 1.84mPTL-13 | C71: 1.84米平台梁-13 | D71: HN400*200*8*13 | E71: 根 | F71: 1 | G71: 427.8 | H71: 427.8 | I71: 427.8 | J71: 6.570*0.335*0.400 | K71: 0.880 | L71: 安徽巢湖
A72: 70 | B72: 1.84mPTL-14 | C72: 1.84米平台梁-14 | D72: HN400*200*8*13 | E72: 根 | F72: 12 | G72: 254 | H72: 3048 | I72: 3048 | J72: 3.950*0.200*0.400 | K72: 3.792 | L72: 安徽巢湖
A73: 71 | B73: 1.84mPTL-15 | C73: 1.84米平台梁-15 | D73: HN400*200*8*13 | E73: 根 | F73: 12 | G73: 306.7 | H73: 3680.4 | I73: 3680.4 | J73: 4.770*0.200*0.400 | K73: 4.579 | L73: 安徽巢湖
A74: 72 | B74: 1.84mPTL-16 | C74: 1.84米平台梁-16 | D74: HN400*200*8*13 | E74: 根 | F74: 2 | G74: 403.2 | H74: 806.4 | I74: 806.4 | J74: 6.270*0.200*0.400 | K74: 1.003 | L74: 安徽巢湖
A75: 73 | B75: 1.84mPTL-17 | C75: 1.84米平台梁-17 | D75: HN400*200*8*13 | E75: 根 | F75: 4 | G75: 415.5 | H75: 1662 | I75: 1662 | J75: 6.270*0.470*0.400 | K75: 4.715 | L75: 安徽巢湖
A76: 74 | B76: 1.84mPTL-18 | C76: 1.84米平台梁-18 | D76: HN400*200*8*13 | E76: 根 | F76: 4 | G76: 415.5 | H76: 1662 | I76: 1662 | J76: 6.270*0.470*0.400 | K76: 4.715 | L76: 安徽巢湖
A77: 75 | B77: 1.84mPTL-19 | C77: 1.84米平台梁-19 | D77: HN400*200*8*13 | E77: 根 | F77: 1 | G77: 413.8 | H77: 413.8 | I77: 413.8 | J77: 6.270*0.335*0.400 | K77: 0.840 | L77: 安徽巢湖
A78: 76 | B78: 1.84mPTL-20 | C78: 1.84米平台梁-20 | D78: HN400*200*8*13 | E78: 根 | F78: 1 | G78: 413.8 | H78: 413.8 | I78: 413.8 | J78: 6.270*0.335*0.400 | K78: 0.840 | L78: 安徽巢湖
A79: 77 | B79: 1.84mPTL-21 | C79: 1.84米平台梁-21 | D79: HN700*300*13*24 | E79: 根 | F79: 1 | G79: 1286.5 | H79: 1286.5 | I79: 1286.5 | J79: 7.060*0.421*0.700 | K79: 2.081 | L79: 安徽巢湖
A80: 78 | B80: 1.84mPTL-22 | C80: 1.84米平台梁-22 | D80: HN700*300*13*24 | E80: 根 | F80: 1 | G80: 1286.5 | H80: 1286.5 | I80: 1286.5 | J80: 7.060*0.421*0.700 | K80: 2.081 | L80: 安徽巢湖
A81: 79 | B81: 1.84mPTL-23 | C81: 1.84米平台梁-23 | D81: HN700*300*13*24 | E81: 根 | F81: 1 | G81: 1287.7 | H81: 1287.7 | I81: 1287.7 | J81: 7.060*0.433*0.700 | K81: 2.140 | L81: 安徽巢湖
A82: 80 | B82: 1.84mPTL-24 | C82: 1.84米平台梁-24 | D82: HN700*300*13*24 | E82: 根 | F82: 1 | G82: 1270.8 | H82: 1270.8 | I82: 1270.8 | J82: 7.060*0.370*0.700 | K82: 1.829 | L82: 安徽巢湖
A83: 81 | B83: 1.84mPTL-25 | C83: 1.84米平台梁-25 | D83: HN200*100*5.5*8 | E83: 根 | F83: 1 | G83: 36 | H83: 36 | I83: 36 | J83: 1.782*0.100*0.200 | K83: 0.036 | L83: 安徽巢湖
A84: 82 | B84: 1.84mPTL-26 | C84: 1.84米平台梁-26 | D84: HN200*100*5.5*8 | E84: 根 | F84: 1 | G84: 29.8 | H84: 29.8 | I84: 29.8 | J84: 1.435*0.100*0.200 | K84: 0.029 | L84: 安徽巢湖
A85: 83 | B85: 1.84mPTL-27 | C85: 1.84米平台梁-27 | D85: HN200*100*5.5*8 | E85: 根 | F85: 6 | G85: 35.3 | H85: 211.8 | I85: 211.8 | J85: 1.720*0.100*0.200 | K85: 0.206 | L85: 安徽巢湖
A86: 84 | B86: 1.84mPTL-28 | C86: 1.84米平台梁-28 | D86: HN200*100*5.5*8 | E86: 根 | F86: 6 | G86: 44.7 | H86: 268.2 | I86: 268.2 | J86: 2.180*0.100*0.200 | K86: 0.262 | L86: 安徽巢湖
A87: 85 | B87: 1.84mPTL-29 | C87: 1.84米平台梁-29 | D87: HN200*100*5.5*8 | E87: 根 | F87: 6 | G87: 37.3 | H87: 223.8 | I87: 223.8 | J87: 1.820*0.100*0.200 | K87: 0.218 | L87: 安徽巢湖
A88: 86 | B88: 1.84mPTL-30 | C88: 1.84米平台梁-30 | D88: HN200*100*5.5*8 | E88: 根 | F88: 12 | G88: 52.2 | H88: 626.4 | I88: 626.4 | J88: 2.545*0.100*0.200 | K88: 0.611 | L88: 安徽巢湖
A89: 87 | B89: 1.84mPTL-31 | C89: 1.84米平台梁-31 | D89: HN200*100*5.5*8 | E89: 根 | F89: 1 | G89: 16.8 | H89: 16.8 | I89: 16.8 | J89: 0.820*0.100*0.200 | K89: 0.016 | L89: 安徽巢湖
A90: 88 | B90: 1.84mPTL-32 | C90: 1.84米平台梁-32 | D90: HN200*100*5.5*8 | E90: 根 | F90: 24 | G90: 33.7 | H90: 808.8 | I90: 808.8 | J90: 1.645*0.100*0.200 | K90: 0.790 | L90: 安徽巢湖
A91: 89 | B91: 1.84mPTL-33 | C91: 1.84米平台梁-33 | D91: HN200*100*5.5*8 | E91: 根 | F91: 12 | G91: 41 | H91: 492 | I91: 492 | J91: 2.000*0.100*0.200 | K91: 0.480 | L91: 安徽巢湖
A92: 90 | B92: 1.84mPTL-34 | C92: 1.84米平台梁-34 | D92: HN550*200*10*16 | E92: 根 | F92: 1 | G92: 669.6 | H92: 669.6 | I92: 669.6 | J92: 7.270*0.286*0.550 | K92: 1.144 | L92: 安徽巢湖
A93: 91 | B93: 1.84mPTL-35 | C93: 1.84米平台梁-35 | D93: HN550*200*10*16 | E93: 根 | F93: 1 | G93: 669.6 | H93: 669.6 | I93: 669.6 | J93: 7.270*0.286*0.550 | K93: 1.144 | L93: 安徽巢湖
A94: 92 | B94: 1.84mPTL-36 | C94: 1.84米平台梁-36 | D94: HN550*200*10*16 | E94: 根 | F94: 1 | G94: 505.7 | H94: 505.7 | I94: 505.7 | J94: 5.341*0.390*0.550 | K94: 1.146 | L94: 安徽巢湖
A95: 93 | B95: 1.84mPTL-37 | C95: 1.84米平台梁-37 | D95: HN550*200*10*16 | E95: 根 | F95: 1 | G95: 129.3 | H95: 129.3 | I95: 129.3 | J95: 1.330*0.370*0.550 | K95: 0.271 | L95: 安徽巢湖
A96: 94 | B96: 1.84mPTL-38 | C96: 1.84米平台梁-38 | D96: HN550*200*10*16 | E96: 根 | F96: 5 | G96: 423 | H96: 2115 | I96: 2115 | J96: 4.621*0.270*0.550 | K96: 3.431 | L96: 安徽巢湖
A97: 95 | B97: 1.84mPTL-39 | C97: 1.84米平台梁-39 | D97: HN550*200*10*16 | E97: 根 | F97: 1 | G97: 436.9 | H97: 436.9 | I97: 436.9 | J97: 4.621*0.370*0.550 | K97: 0.940 | L97: 安徽巢湖
A98: 96 | B98: 1.84mPTL-40 | C98: 1.84米平台梁-40 | D98: HN550*200*10*16 | E98: 根 | F98: 1 | G98: 436.9 | H98: 436.9 | I98: 436.9 | J98: 4.621*0.370*0.550 | K98: 0.940 | L98: 安徽巢湖
A99: 97 | B99: 1.84mPTL-41 | C99: 1.84米平台梁-41 | D99: HN550*200*10*16 | E99: 根 | F99: 1 | G99: 436.9 | H99: 436.9 | I99: 436.9 | J99: 4.621*0.370*0.550 | K99: 0.940 | L99: 安徽巢湖
A100: 98 | B100: 1.84mPTL-42 | C100: 1.84米平台梁-42 | D100: HN550*200*10*16 | E100: 根 | F100: 2 | G100: 513.9 | H100: 1027.8 | I100: 1027.8 | J100: 5.621*0.270*0.550 | K100: 1.669 | L100: 安徽巢湖
A101: 99 | B101: 1.84mPTL-43 | C101: 1.84米平台梁-43 | D101: HN550*200*10*16 | E101: 根 | F101: 1 | G101: 527.8 | H101: 527.8 | I101: 527.8 | J101: 5.621*0.370*0.550 | K101: 1.144 | L101: 安徽巢湖
A102: 100 | B102: 1.84mPTL-44 | C102: 1.84米平台梁-44 | D102: HN550*200*10*16 | E102: 根 | F102: 1 | G102: 527.8 | H102: 527.8 | I102: 527.8 | J102: 5.621*0.370*0.550 | K102: 1.144 | L102: 安徽巢湖
A103: 101 | B103: 1.84mPTL-45 | C103: 1.84米平台梁-45 | D103: HN550*200*10*16 | E103: 根 | F103: 2 | G103: 481.7 | H103: 963.4 | I103: 963.4 | J103: 5.121*0.330*0.550 | K103: 1.859 | L103: 安徽巢湖
A104: 102 | B104: 1.84mPTL-46 | C104: 1.84米平台梁-46 | D104: HN550*200*10*16 | E104: 根 | F104: 2 | G104: 481.7 | H104: 963.4 | I104: 963.4 | J104: 5.121*0.330*0.550 | K104: 1.859 | L104: 安徽巢湖
A105: 103 | B105: 1.84mPTL-47 | C105: 1.84米平台梁-47 | D105: HN550*200*10*16 | E105: 根 | F105: 1 | G105: 541.1 | H105: 541.1 | I105: 541.1 | J105: 5.921*0.270*0.550 | K105: 0.879 | L105: 安徽巢湖
A106: 104 | B106: 1.84mPTL-48 | C106: 1.84米平台梁-48 | D106: HN550*200*10*16 | E106: 根 | F106: 1 | G106: 549 | H106: 549 | I106: 549 | J106: 5.921*0.470*0.550 | K106: 1.531 | L106: 安徽巢湖
A107: 105 | B107: 1.84mPTL-49 | C107: 1.84米平台梁-49 | D107: HN550*200*10*16 | E107: 根 | F107: 4 | G107: 303 | H107: 1212 | I107: 1212 | J107: 3.301*0.270*0.550 | K107: 1.961 | L107: 安徽巢湖
A108: 106 | B108: 1.84mPTL-50 | C108: 1.84米平台梁-50 | D108: HN550*200*10*16 | E108: 根 | F108: 4 | G108: 377.5 | H108: 1510 | I108: 1510 | J108: 4.121*0.270*0.550 | K108: 2.448 | L108: 安徽巢湖
A109: 107 | B109: 1.84mPTL-51 | C109: 1.84米平台梁-51 | D109: HN550*200*10*16 | E109: 根 | F109: 1 | G109: 395.7 | H109: 395.7 | I109: 395.7 | J109: 4.321*0.270*0.550 | K109: 0.642 | L109: 安徽巢湖
A110: 108 | B110: 1.84mPTL-52 | C110: 1.84米平台梁-52 | D110: HN550*200*10*16 | E110: 根 | F110: 1 | G110: 409.7 | H110: 409.7 | I110: 409.7 | J110: 4.321*0.370*0.550 | K110: 0.879 | L110: 安徽巢湖
A111: 109 | B111: 1.84mPTL-53 | C111: 1.84米平台梁-53 | D111: HN550*200*10*16 | E111: 根 | F111: 1 | G111: 684.2 | H111: 684.2 | I111: 684.2 | J111: 6.841*0.390*0.550 | K111: 1.467 | L111: 安徽巢湖
A112: 110 | B112: 1.84mPTL-54 | C112: 1.84米平台梁-54 | D112: HN550*200*10*16 | E112: 根 | F112: 1 | G112: 668.9 | H112: 668.9 | I112: 668.9 | J112: 6.841*0.390*0.550 | K112: 1.467 | L112: 安徽巢湖
A113: 111 | B113: 1.84mPTL-55 | C113: 1.84米平台梁-55 | D113: HN550*200*10*16 | E113: 根 | F113: 1 | G113: 668.9 | H113: 668.9 | I113: 668.9 | J113: 6.841*0.390*0.550 | K113: 1.467 | L113: 安徽巢湖
A114: 112 | B114: 1.84mPTL-56 | C114: 1.84米平台梁-56 | D114: HN550*200*10*16 | E114: 根 | F114: 2 | G114: 661.2 | H114: 1322.4 | I114: 1322.4 | J114: 6.841*0.390*0.550 | K114: 2.935 | L114: 安徽巢湖
A115: 113 | B115: 1.84mPTL-57 | C115: 1.84米平台梁-57 | D115: HN550*200*10*16 | E115: 根 | F115: 2 | G115: 661.2 | H115: 1322.4 | I115: 1322.4 | J115: 6.841*0.390*0.550 | K115: 2.935 | L115: 安徽巢湖
A116: 114 | B116: 1.84mPTL-58 | C116: 1.84米平台梁-58 | D116: HN550*200*10*16 | E116: 根 | F116: 4 | G116: 661.2 | H116: 2644.8 | I116: 2644.8 | J116: 6.841*0.390*0.550 | K116: 5.870 | L116: 安徽巢湖
A117: 115 | B117: 1.84mPTL-59 | C117: 1.84米平台梁-59 | D117: HN550*200*10*16 | E117: 根 | F117: 4 | G117: 661.2 | H117: 2644.8 | I117: 2644.8 | J117: 6.841*0.390*0.550 | K117: 5.870 | L117: 安徽巢湖
A118: 116 | B118: 1.84mPTL-60 | C118: 1.84米平台梁-60 | D118: HN550*200*10*16 | E118: 根 | F118: 2 | G118: 661.2 | H118: 1322.4 | I118: 1322.4 | J118: 6.841*0.390*0.550 | K118: 2.935 | L118: 安徽巢湖
A119: 117 | B119: 1.84mPTL-61 | C119: 1.84米平台梁-61 | D119: HN550*200*10*16 | E119: 根 | F119: 1 | G119: 674.3 | H119: 674.3 | I119: 674.3 | J119: 6.841*0.390*0.550 | K119: 1.467 | L119: 安徽巢湖
A120: 118 | B120: 1.84mPTL-62 | C120: 1.84米平台梁-62 | D120: HN550*200*10*16 | E120: 根 | F120: 2 | G120: 649.1 | H120: 1298.2 | I120: 1298.2 | J120: 6.841*0.390*0.550 | K120: 2.935 | L120: 安徽巢湖
A121: 119 | B121: 1.84mPTL-63 | C121: 1.84米平台梁-63 | D121: HN550*200*10*16 | E121: 根 | F121: 1 | G121: 654.5 | H121: 654.5 | I121: 654.5 | J121: 6.841*0.330*0.550 | K121: 1.242 | L121: 安徽巢湖
A122: 120 | B122: 1.84mPTL-64 | C122: 1.84米平台梁-64 | D122: HN550*200*10*16 | E122: 根 | F122: 1 | G122: 654.5 | H122: 654.5 | I122: 654.5 | J122: 6.841*0.330*0.550 | K122: 1.242 | L122: 安徽巢湖
A123: 121 | B123: 1.84mPTL-65 | C123: 1.84米平台梁-65 | D123: HN550*200*10*16 | E123: 根 | F123: 1 | G123: 654.5 | H123: 654.5 | I123: 654.5 | J123: 6.841*0.330*0.550 | K123: 1.242 | L123: 安徽巢湖
A124: 122 | B124: 1.84mPTL-66 | C124: 1.84米平台梁-66 | D124: HN550*200*10*16 | E124: 根 | F124: 1 | G124: 644.6 | H124: 644.6 | I124: 644.6 | J124: 6.841*0.330*0.550 | K124: 1.242 | L124: 安徽巢湖
A125: 123 | B125: 1.84mPTL-67 | C125: 1.84米平台梁-67 | D125: HN550*200*10*16 | E125: 根 | F125: 2 | G125: 322.9 | H125: 645.8 | I125: 645.8 | J125: 3.521*0.270*0.550 | K125: 1.046 | L125: 安徽巢湖
A126: 124 | B126: 1.84mPTL-68 | C126: 1.84米平台梁-68 | D126: HN550*200*10*16 | E126: 根 | F126: 1 | G126: 505.7 | H126: 505.7 | I126: 505.7 | J126: 5.341*0.390*0.550 | K126: 1.146 | L126: 安徽巢湖
A127: 125 | B127: 1.84mPTL-69 | C127: 1.84米平台梁-69 | D127: HN550*200*10*16 | E127: 根 | F127: 1 | G127: 674.4 | H127: 674.4 | I127: 674.4 | J127: 7.060*0.330*0.550 | K127: 1.281 | L127: 安徽巢湖
A128: 126 | B128: 1.84mPTL-70 | C128: 1.84米平台梁-70 | D128: HN550*200*10*16 | E128: 根 | F128: 1 | G128: 674.4 | H128: 674.4 | I128: 674.4 | J128: 7.060*0.330*0.550 | K128: 1.281 | L128: 安徽巢湖
A129: 127 | B129: 1.84mPTL-71 | C129: 1.84米平台梁-71 | D129: HN550*200*10*16 | E129: 根 | F129: 1 | G129: 674.4 | H129: 674.4 | I129: 674.4 | J129: 7.060*0.330*0.550 | K129: 1.281 | L129: 安徽巢湖
A130: 128 | B130: 1.84mPTL-72 | C130: 1.84米平台梁-72 | D130: HN550*200*10*16 | E130: 根 | F130: 1 | G130: 674.4 | H130: 674.4 | I130: 674.4 | J130: 7.060*0.330*0.550 | K130: 1.281 | L130: 安徽巢湖
A131: 129 | B131: 1.84mPTL-73 | C131: 1.84米平台梁-73 | D131: HN550*200*10*16 | E131: 根 | F131: 1 | G131: 451.3 | H131: =G131*F131 -> 451.3 | I131: 451.3 | J131: 4.760*0.470*0.550 | K131: 1.230 | L131: 安徽巢湖
A132: 130 | B132: 1.84mPTL-74 | C132: 1.84米平台梁-74 | D132: HN550*200*10*16 | E132: 根 | F132: 1 | G132: 462.9 | H132: 462.9 | I132: 462.9 | J132: 5.060*0.270*0.550 | K132: 0.751 | L132: 安徽巢湖
A133: 131 | B133: 1.84mPTL-75 | C133: 1.84米平台梁-75 | D133: HN550*200*10*16 | E133: 根 | F133: 1 | G133: 478.5 | H133: 478.5 | I133: 478.5 | J133: 5.060*0.470*0.550 | K133: 1.308 | L133: 安徽巢湖
A134: 132 | B134: 1.84mPTL-76 | C134: 1.84米平台梁-76 | D134: HN550*200*10*16 | E134: 根 | F134: 1 | G134: 478.5 | H134: 478.5 | I134: 478.5 | J134: 5.060*0.470*0.550 | K134: 1.308 | L134: 安徽巢湖
A135: 133 | B135: 1.84mPTL-77 | C135: 1.84米平台梁-77 | D135: HN550*200*10*16 | E135: 根 | F135: 1 | G135: 478.5 | H135: 478.5 | I135: 478.5 | J135: 5.060*0.470*0.550 | K135: 1.308 | L135: 安徽巢湖
A136: 134 | B136: 1.84mPTL-78 | C136: 1.84米平台梁-78 | D136: HN550*200*10*16 | E136: 根 | F136: 1 | G136: 581.1 | H136: 581.1 | I136: 581.1 | J136: 6.360*0.270*0.550 | K136: 0.944 | L136: 安徽巢湖
A137: 135 | B137: 1.84mPTL-79 | C137: 1.84米平台梁-79 | D137: HN550*200*10*16 | E137: 根 | F137: 2 | G137: 417.4 | H137: 834.8 | I137: 834.8 | J137: 4.560*0.270*0.550 | K137: 1.354 | L137: 安徽巢湖
A138: 136 | B138: 1.84mPTL-80 | C138: 1.84米平台梁-80 | D138: HN550*200*10*16 | E138: 根 | F138: 1 | G138: 569.4 | H138: 569.4 | I138: 569.4 | J138: 6.060*0.470*0.550 | K138: 1.567 | L138: 安徽巢湖
A139: 137 | B139: 1.84mPTL-81 | C139: 1.84米平台梁-81 | D139: HN550*200*10*16 | E139: 根 | F139: 1 | G139: 569.4 | H139: 569.4 | I139: 569.4 | J139: 6.060*0.470*0.550 | K139: 1.567 | L139: 安徽巢湖
A140: 138 | B140: 1.84mPTL-82 | C140: 1.84米平台梁-82 | D140: HN550*200*10*16 | E140: 根 | F140: 1 | G140: 660.9 | H140: 660.9 | I140: 660.9 | J140: 7.270*0.200*0.550 | K140: 0.800 | L140: 安徽巢湖
A141: 139 | B141: 1.84mPTL-83 | C141: 1.84米平台梁-83 | D141: HN550*200*10*16 | E141: 根 | F141: 1 | G141: 670.8 | H141: 670.8 | I141: 670.8 | J141: 7.270*0.295*0.550 | K141: 1.180 | L141: 安徽巢湖
A142: 140 | B142: 4.84mPTL-1 | C142: 4.84米平台梁-1 | D142: HN300*150*6.5*9 | E142: 根 | F142: 21 | G142: 151.9 | H142: 3189.9 | I142: 3189.9 | J142: 4.270*0.150*0.300 | K142: 4.035 | L142: 安徽巢湖
A143: 141 | B143: 4.84mPTL-2 | C143: 4.84米平台梁-2 | D143: HN300*150*6.5*9 | E143: 根 | F143: 4 | G143: 45.2 | H143: 180.8 | I143: 180.8 | J143: 1.270*0.150*0.300 | K143: 0.229 | L143: 安徽巢湖
A144: 142 | B144: 4.84mPTL-3 | C144: 4.84米平台梁-3 | D144: HN300*150*6.5*9 | E144: 根 | F144: 4 | G144: 205.3 | H144: 821.2 | I144: 821.2 | J144: 5.770*0.150*0.300 | K144: 1.039 | L144: 安徽巢湖
A145: 143 | B145: 4.84mPTL-4 | C145: 4.84米平台梁-4 | D145: HN400*200*8*13 | E145: 根 | F145: 1 | G145: 122.9 | H145: 122.9 | I145: 122.9 | J145: 1.794*0.200*0.400 | K145: 0.144 | L145: 安徽巢湖
A146: 144 | B146: 4.84mPTL-5 | C146: 4.84米平台梁-5 | D146: HN400*200*8*13 | E146: 根 | F146: 1 | G146: 122.9 | H146: 122.9 | I146: 122.9 | J146: 1.794*0.295*0.400 | K146: 0.212 | L146: 安徽巢湖
A147: 145 | B147: 4.84mPTL-6 | C147: 4.84米平台梁-6 | D147: HN400*200*8*13 | E147: 根 | F147: 2 | G147: 146.2 | H147: 292.4 | I147: 292.4 | J147: 2.279*0.200*0.400 | K147: 0.365 | L147: 安徽巢湖
A148: 146 | B148: 4.84mPTL-7 | C148: 4.84米平台梁-7 | D148: HN400*200*8*13 | E148: 根 | F148: 4 | G148: 35.9 | H148: 143.6 | I148: 143.6 | J148: 0.595*0.200*0.400 | K148: 0.190 | L148: 安徽巢湖
A149: 147 | B149: 4.84mPTL-8 | C149: 4.84米平台梁-8 | D149: HN400*200*8*13 | E149: 根 | F149: 1 | G149: 216.7 | H149: 216.7 | I149: 216.7 | J149: 3.370*0.200*0.400 | K149: 0.270 | L149: 安徽巢湖
A150: 148 | B150: 4.84mPTL-9 | C150: 4.84米平台梁-9 | D150: HN400*200*8*13 | E150: 根 | F150: 15 | G150: 467.5 | H150: 7012.5 | I150: 7012.5 | J150: 7.270*0.200*0.400 | K150: 8.724 | L150: 安徽巢湖
A151: 149 | B151: 4.84mPTL-10 | C151: 4.84米平台梁-10 | D151: HN400*200*8*13 | E151: 根 | F151: 2 | G151: 475.3 | H151: 950.6 | I151: 950.6 | J151: 7.270*0.295*0.400 | K151: 1.716 | L151: 安徽巢湖
A152: 150 | B152: 4.84mPTL-11 | C152: 4.84米平台梁-11 | D152: HN550*200*10*16 | E152: 根 | F152: 1 | G152: 606.6 | H152: 606.6 | I152: 606.6 | J152: 6.270*0.295*0.550 | K152: 1.017 | L152: 安徽巢湖
A153: 151 | B153: 4.84mPTL-12 | C153: 4.84米平台梁-12 | D153: HN400*200*8*13 | E153: 根 | F153: 1 | G153: 213.5 | H153: 213.5 | I153: 213.5 | J153: 3.320*0.200*0.400 | K153: 0.266 | L153: 安徽巢湖
A154: 152 | B154: 4.84mPTL-13 | C154: 4.84米平台梁-13 | D154: HN400*200*8*13 | E154: 根 | F154: 1 | G154: 238.6 | H154: 238.6 | I154: 238.6 | J154: 3.269*0.390*0.400 | K154: 0.510 | L154: 安徽巢湖
A155: 153 | B155: 4.84mPTL-14 | C155: 4.84米平台梁-14 | D155: HN400*200*8*13 | E155: 根 | F155: 1 | G155: 174.9 | H155: 174.9 | I155: 174.9 | J155: 2.720*0.200*0.400 | K155: 0.218 | L155: 安徽巢湖
A156: 154 | B156: 4.84mPTL-15 | C156: 4.84米平台梁-15 | D156: HN400*200*8*13 | E156: 根 | F156: 8 | G156: 338.9 | H156: 2711.2 | I156: 2711.2 | J156: 5.270*0.200*0.400 | K156: 3.373 | L156: 安徽巢湖
A157: 155 | B157: 4.84mPTL-16 | C157: 4.84米平台梁-16 | D157: HN400*200*8*13 | E157: 根 | F157: 8 | G157: 422.5 | H157: 3380 | I157: 3380 | J157: 6.570*0.200*0.400 | K157: 4.205 | L157: 安徽巢湖
A158: 156 | B158: 4.84mPTL-17 | C158: 4.84米平台梁-17 | D158: HN400*200*8*13 | E158: 根 | F158: 16 | G158: 254 | H158: 4064 | I158: 4064 | J158: 3.950*0.200*0.400 | K158: 5.056 | L158: 安徽巢湖
A159: 157 | B159: 4.84mPTL-18 | C159: 4.84米平台梁-18 | D159: HN400*200*8*13 | E159: 根 | F159: 16 | G159: 306.7 | H159: 4907.2 | I159: 4907.2 | J159: 4.770*0.200*0.400 | K159: 6.106 | L159: 安徽巢湖
A160: 158 | B160: 4.84mPTL-19 | C160: 4.84米平台梁-19 | D160: HN400*200*8*13 | E160: 根 | F160: 1 | G160: 238.7 | H160: 238.7 | I160: 238.7 | J160: 3.271*0.390*0.400 | K160: 0.510 | L160: 安徽巢湖
A161: 159 | B161: 4.84mPTL-20 | C161: 4.84米平台梁-20 | D161: HN700*300*13*24 | E161: 根 | F161: 1 | G161: 1286.5 | H161: 1286.5 | I161: 1286.5 | J161: 7.060*0.421*0.700 | K161: 2.081 | L161: 安徽巢湖
A162: 160 | B162: 4.84mPTL-21 | C162: 4.84米平台梁-21 | D162: HN700*300*13*24 | E162: 根 | F162: 1 | G162: 1286.5 | H162: 1286.5 | I162: 1286.5 | J162: 7.060*0.421*0.700 | K162: 2.081 | L162: 安徽巢湖
A163: 161 | B163: 4.84mPTL-22 | C163: 4.84米平台梁-22 | D163: HN700*300*13*24 | E163: 根 | F163: 1 | G163: 409.9 | H163: 409.9 | I163: 409.9 | J163: 2.180*0.430*0.700 | K163: 0.656 | L163: 安徽巢湖
A164: 162 | B164: 4.84mPTL-23 | C164: 4.84米平台梁-23 | D164: HN700*300*13*24 | E164: 根 | F164: 1 | G164: 1287.7 | H164: 1287.7 | I164: 1287.7 | J164: 7.060*0.430*0.700 | K164: 2.125 | L164: 安徽巢湖
A165: 163 | B165: 4.84mPTL-24 | C165: 4.84米平台梁-24 | D165: HN700*300*13*24 | E165: 根 | F165: 1 | G165: 1270.8 | H165: 1270.8 | I165: 1270.8 | J165: 7.060*0.370*0.700 | K165: 1.829 | L165: 安徽巢湖
A166: 164 | B166: 4.84mPTL-25 | C166: 4.84米平台梁-25 | D166: HN550*200*10*16 | E166: 根 | F166: 1 | G166: 505.7 | H166: 505.7 | I166: 505.7 | J166: 5.341*0.390*0.550 | K166: 1.146 | L166: 安徽巢湖
A167: 165 | B167: 4.84mPTL-26 | C167: 4.84米平台梁-26 | D167: HN550*200*10*16 | E167: 根 | F167: 2 | G167: 481.7 | H167: 963.4 | I167: 963.4 | J167: 5.121*0.330*0.550 | K167: 1.859 | L167: 安徽巢湖
A168: 166 | B168: 4.84mPTL-27 | C168: 4.84米平台梁-27 | D168: HN550*200*10*16 | E168: 根 | F168: 1 | G168: 209.5 | H168: 209.5 | I168: 209.5 | J168: 2.180*0.330*0.550 | K168: 0.396 | L168: 安徽巢湖
A169: 167 | B169: 4.84mPTL-28 | C169: 4.84米平台梁-28 | D169: HN550*200*10*16 | E169: 根 | F169: 1 | G169: 669.6 | H169: 669.6 | I169: 669.6 | J169: 7.270*0.286*0.550 | K169: 1.144 | L169: 安徽巢湖
A170: 168 | B170: 4.84mPTL-29 | C170: 4.84米平台梁-29 | D170: HN550*200*10*16 | E170: 根 | F170: 1 | G170: 669.6 | H170: 669.6 | I170: 669.6 | J170: 7.270*0.286*0.550 | K170: 1.144 | L170: 安徽巢湖
A171: 169 | B171: 4.84mPTL-30 | C171: 4.84米平台梁-30 | D171: HN550*200*10*16 | E171: 根 | F171: 1 | G171: 451.2 | H171: 451.2 | I171: 451.2 | J171: 4.621*0.330*0.550 | K171: 0.839 | L171: 安徽巢湖
A172: 170 | B172: 4.84mPTL-31 | C172: 4.84米平台梁-31 | D172: HN550*200*10*16 | E172: 根 | F172: 1 | G172: 451.2 | H172: 451.2 | I172: 451.2 | J172: 4.621*0.330*0.550 | K172: 0.839 | L172: 安徽巢湖
A173: 171 | B173: 4.84mPTL-32 | C173: 4.84米平台梁-32 | D173: HN550*200*10*16 | E173: 根 | F173: 1 | G173: 462.6 | H173: 462.6 | I173: 462.6 | J173: 4.621*0.330*0.550 | K173: 0.839 | L173: 安徽巢湖
A174: 172 | B174: 4.84mPTL-33 | C174: 4.84米平台梁-33 | D174: HN550*200*10*16 | E174: 根 | F174: 5 | G174: 423 | H174: 2115 | I174: 2115 | J174: 4.621*0.270*0.550 | K174: 3.431 | L174: 安徽巢湖
A175: 173 | B175: 4.84mPTL-34 | C175: 4.84米平台梁-34 | D175: HN550*200*10*16 | E175: 根 | F175: 1 | G175: 553.5 | H175: 553.5 | I175: 553.5 | J175: 5.621*0.330*0.550 | K175: 1.020 | L175: 安徽巢湖
A176: 174 | B176: 4.84mPTL-35 | C176: 4.84米平台梁-35 | D176: HN550*200*10*16 | E176: 根 | F176: 1 | G176: 553.5 | H176: 553.5 | I176: 553.5 | J176: 5.621*0.330*0.550 | K176: 1.020 | L176: 安徽巢湖
A177: 175 | B177: 4.84mPTL-36 | C177: 4.84米平台梁-36 | D177: HN550*200*10*16 | E177: 根 | F177: 1 | G177: 513.9 | H177: 513.9 | I177: 513.9 | J177: 5.621*0.270*0.550 | K177: 0.835 | L177: 安徽巢湖
A178: 176 | B178: 4.84mPTL-37 | C178: 4.84米平台梁-37 | D178: HN550*200*10*16 | E178: 根 | F178: 1 | G178: 515.4 | H178: 515.4 | I178: 515.4 | J178: 5.621*0.270*0.550 | K178: 0.835 | L178: 安徽巢湖
A179: 177 | B179: 4.84mPTL-38 | C179: 4.84米平台梁-38 | D179: HN550*200*10*16 | E179: 根 | F179: 2 | G179: 481.7 | H179: 963.4 | I179: 963.4 | J179: 5.121*0.330*0.550 | K179: 1.859 | L179: 安徽巢湖
A180: 178 | B180: 4.84mPTL-39 | C180: 4.84米平台梁-39 | D180: HN550*200*10*16 | E180: 根 | F180: 2 | G180: 541.1 | H180: 1082.2 | I180: 1082.2 | J180: 5.921*0.270*0.550 | K180: 1.759 | L180: 安徽巢湖
A181: 179 | B181: 4.84mPTL-40 | C181: 4.84米平台梁-40 | D181: HN550*200*10*16 | E181: 根 | F181: 4 | G181: 303 | H181: 1212 | I181: 1212 | J181: 3.301*0.270*0.550 | K181: 1.961 | L181: 安徽巢湖
A182: 180 | B182: 4.84mPTL-41 | C182: 4.84米平台梁-41 | D182: HN550*200*10*16 | E182: 根 | F182: 4 | G182: 377.5 | H182: 1510 | I182: 1510 | J182: 4.121*0.270*0.550 | K182: 2.448 | L182: 安徽巢湖
A183: 181 | B183: 4.84mPTL-42 | C183: 4.84米平台梁-42 | D183: HN550*200*10*16 | E183: 根 | F183: 1 | G183: 425.4 | H183: 425.4 | I183: 425.4 | J183: 4.321*0.330*0.550 | K183: 0.784 | L183: 安徽巢湖
A184: 182 | B184: 4.84mPTL-43 | C184: 4.84米平台梁-43 | D184: HN550*200*10*16 | E184: 根 | F184: 1 | G184: 397.2 | H184: 397.2 | I184: 397.2 | J184: 4.321*0.270*0.550 | K184: 0.642 | L184: 安徽巢湖
A185: 183 | B185: 4.84mPTL-44 | C185: 4.84米平台梁-44 | D185: HN550*200*10*16 | E185: 根 | F185: 1 | G185: 638 | H185: 638 | I185: 638 | J185: 6.841*0.330*0.550 | K185: 1.242 | L185: 安徽巢湖
A186: 184 | B186: 4.84mPTL-45 | C186: 4.84米平台梁-45 | D186: HN550*200*10*16 | E186: 根 | F186: 1 | G186: 638 | H186: 638 | I186: 638 | J186: 6.841*0.330*0.550 | K186: 1.242 | L186: 安徽巢湖
A187: 185 | B187: 4.84mPTL-46 | C187: 4.84米平台梁-46 | D187: HN550*200*10*16 | E187: 根 | F187: 4 | G187: 642 | H187: 2568 | I187: 2568 | J187: 6.841*0.390*0.550 | K187: 5.870 | L187: 安徽巢湖
A188: 186 | B188: 4.84mPTL-47 | C188: 4.84米平台梁-47 | D188: HN550*200*10*16 | E188: 根 | F188: 1 | G188: 659.3 | H188: 659.3 | I188: 659.3 | J188: 6.841*0.390*0.550 | K188: 1.467 | L188: 安徽巢湖
A189: 187 | B189: 4.84mPTL-48 | C189: 4.84米平台梁-48 | D189: HN550*200*10*16 | E189: 根 | F189: 1 | G189: 659.3 | H189: 659.3 | I189: 659.3 | J189: 6.841*0.390*0.550 | K189: 1.467 | L189: 安徽巢湖
A190: 188 | B190: 4.84mPTL-49 | C190: 4.84米平台梁-49 | D190: HN550*200*10*16 | E190: 根 | F190: 4 | G190: 685.6 | H190: 2742.4 | I190: 2742.4 | J190: 6.841*0.390*0.550 | K190: 5.870 | L190: 安徽巢湖
A191: 189 | B191: 4.84mPTL-50 | C191: 4.84米平台梁-50 | D191: HN550*200*10*16 | E191: 根 | F191: 4 | G191: 661.2 | H191: 2644.8 | I191: 2644.8 | J191: 6.841*0.390*0.550 | K191: 5.870 | L191: 安徽巢湖
A192: 190 | B192: 4.84mPTL-51 | C192: 4.84米平台梁-51 | D192: HN550*200*10*16 | E192: 根 | F192: 1 | G192: 674.3 | H192: 674.3 | I192: 674.3 | J192: 6.841*0.330*0.550 | K192: 1.242 | L192: 安徽巢湖
A193: 191 | B193: 4.84mPTL-52 | C193: 4.84米平台梁-52 | D193: HN550*200*10*16 | E193: 根 | F193: 1 | G193: 674.3 | H193: 674.3 | I193: 674.3 | J193: 6.841*0.330*0.550 | K193: 1.242 | L193: 安徽巢湖
A194: 192 | B194: 4.84mPTL-53 | C194: 4.84米平台梁-53 | D194: HN550*200*10*16 | E194: 根 | F194: 1 | G194: 634.6 | H194: 634.6 | I194: 634.6 | J194: 6.841*0.330*0.550 | K194: 1.242 | L194: 安徽巢湖
A195: 193 | B195: 4.84mPTL-54 | C195: 4.84米平台梁-54 | D195: HN550*200*10*16 | E195: 根 | F195: 1 | G195: 634.6 | H195: =G195*F195 -> 634.6 | I195: 634.6 | J195: 6.841*0.330*0.550 | K195: 1.242 | L195: 安徽巢湖
A196: 194 | B196: 4.84mPTL-55 | C196: 4.84米平台梁-55 | D196: HN550*200*10*16 | E196: 根 | F196: 4 | G196: 624.7 | H196: 2498.8 | I196: 2498.8 | J196: 6.841*0.270*0.550 | K196: 4.064 | L196: 安徽巢湖
A197: 195 | B197: 4.84mPTL-56 | C197: 4.84米平台梁-56 | D197: HN550*200*10*16 | E197: 根 | F197: 2 | G197: 322.9 | H197: 645.8 | I197: 645.8 | J197: 3.521*0.270*0.550 | K197: 1.046 | L197: 安徽巢湖
A198: 196 | B198: 4.84mPTL-57 | C198: 4.84米平台梁-57 | D198: HN550*200*10*16 | E198: 根 | F198: 1 | G198: 505.7 | H198: 505.7 | I198: 505.7 | J198: 5.341*0.390*0.550 | K198: 1.146 | L198: 安徽巢湖
A199: 197 | B199: 4.84mPTL-58 | C199: 4.84米平台梁-58 | D199: HN550*200*10*16 | E199: 根 | F199: 1 | G199: 694.3 | H199: 694.3 | I199: 694.3 | J199: 7.060*0.295*0.550 | K199: 1.145 | L199: 安徽巢湖
A200: 198 | B200: 4.84mPTL-59 | C200: 4.84米平台梁-59 | D200: HN550*200*10*16 | E200: 根 | F200: 1 | G200: 694.3 | H200: 694.3 | I200: 694.3 | J200: 7.060*0.295*0.550 | K200: 1.145 | L200: 安徽巢湖
... 364 more rows
